bitfinex-derivatives/quotes_SOLF0:USTF0_20260129
["timestamp","ask_amount","ask_price","bid_price","bid_amount"]
[1769718573546,11.09253817,116.99,116.94,1.24058916]
[1769718574643,7.7065,116.99,116.94,1.24058916]
[1769718574850,7.7065,116.99,116.95,1.24166708]
[1769718576451,7.33047461,117.0,116.96,4.05129925]
[1769718578352,11.1058131,117.01,116.96,4.05129925]
[1769718579449,3.4006131,117.01,116.97,2.80963217]
[1769718580754,3.4006131,117.01,116.96,11.75949925]
[1769718583856,3.4006131,117.01,116.96,8.94986708]
[1769718584052,3.4006131,117.01,116.97,2.80963217]
[1769718587853,3.4006131,117.01,116.97,4.05129925]
[1769718588049,3.4006131,117.03,116.99,2.80963217]
[1769718588760,3.4006131,117.03,116.98,4.05129925]
[1769718589360,3.4006131,117.03,116.98,11.75819925]
[1769718591259,11.1046131,117.03,116.98,8.94856708]
[1769718591457,11.1046131,117.03,116.92,1.24166708]
[1769718591458,3.4006131,117.0,116.92,1.24166708]
[1769718591648,3.4006131,117.0,116.96,1.24166708]
[1769718591853,11.1069131,117.0,116.96,1.24166708]
[1769718598762,6.37516854,116.99,116.94,1.23628087]
[1769718599266,3.56553637,116.99,116.94,1.23628087]
[1769718600364,7.7071,116.98,116.94,1.23628087]
[1769718602363,3.56553637,116.96,116.91,1.4877517]
[1769718602569,3.56553637,116.98,116.93,2.80963217]
[1769718602769,3.56553637,116.98,116.86,486.9987]
[1769718602770,3.56553637,116.96,116.9,4.04591304]
[1769718603563,3.56553637,116.96,116.91,2.80963217]
[1769718603764,3.56553637,116.96,116.9,4.04591304]
[1769718604574,7.709,116.95,116.91,2.80963217]
[1769718605971,7.709,116.95,116.9,4.04591304]
[1769718606164,7.709,116.95,116.89,9.2012607]
[1769718606165,7.709,116.95,116.91,4.04591304]
[1769718606772,7.7082,116.97,116.93,2.80963217]
[1769718607465,11.27373637,116.97,116.92,1.23628087]
[1769718607669,14.08336854,116.97,116.92,1.23628087]
[1769718608577,11.27373637,116.97,116.92,1.23628087]
[1769718610471,14.08336854,116.97,116.92,1.23628087]
[1769718615182,11.27373637,116.97,116.92,11.75681304]
[1769718615582,11.27373637,116.97,116.92,11.75851037]
[1769718616782,11.27373637,116.97,116.92,8.94718087]
[1769718620685,7.7071,116.98,116.94,1.23628087]
[1769718620879,6.37686587,117.01,116.95,1.23628087]
[1769718621083,6.37686587,117.01,116.94,2.8113295]
[1769718621084,6.37686587,117.0,116.94,4.04761037]
[1769718621889,6.37686587,117.0,116.94,1.23628087]
[1769718622292,14.08266587,117.0,116.94,8.94588087]
[1769718622489,14.08266587,117.0,116.94,11.75721037]
[1769718623393,11.27133637,117.0,116.94,11.75721037]
[1769718623593,14.08266587,117.0,116.94,11.75721037]
[1769718625992,7.7064,116.99,116.94,1.23628087]
[1769718626187,3.54819027,116.96,116.9,1.24385499]
[1769718626387,6.35951977,116.96,116.9,4.05518449]
[1769718626587,6.35951977,116.94,116.88,1.24385499]
[1769718626786,6.35951977,116.94,116.88,4.05518449]
[1769718627092,6.35951977,116.94,116.88,11.76878449]
[1769718627093,14.06931977,116.94,116.88,11.76878449]
[1769718627492,119.9005,116.97,116.88,1.24385499]
[1769718627493,6.35951977,116.93,116.88,1.24385499]
[1769718628391,14.06981977,116.93,116.88,1.24385499]
[1769718630798,14.07061977,116.92,116.86,345.47518449]
[1769718631695,14.07061977,116.92,116.86,353.19008449]
[1769718634397,11.25929027,116.92,116.86,353.19008449]
[1769718634789,11.1390184,116.94,116.88,1.24558771]
[1769718634993,13.9503479,116.94,116.88,1.24558771]
[1769718635198,3.4287184,116.93,116.88,4.05691721]
[1769718636299,3.4287184,116.93,116.88,11.77041721]
[1769718638196,3.4287184,116.93,116.89,2.8113295]
[1769718640798,3.4287184,116.93,116.88,8.95908771]
[1769718641004,13.9504479,116.93,116.88,1.24558771]
[1769718641603,11.1391184,116.93,116.88,1.24558771]
[1769718642009,11.1391184,116.93,116.88,4.05691721]
[1769718642301,3.4287184,116.92,116.87,10.5255295]
[1769718643204,3.4287184,116.92,116.87,11.77111721]
[1769718643602,3.4287184,116.92,116.88,2.8113295]
[1769718648812,3.4287184,116.92,116.87,11.77111721]
[1769718649318,11.1398184,116.92,116.87,4.05691721]
[1769718650119,11.1404184,116.91,116.86,344.2313295]
[1769718650310,11.1404184,116.91,116.86,345.47691721]
[1769718650510,13.9517479,116.91,116.86,345.47691721]
[1769718650816,11.1404184,116.91,116.86,345.47691721]
[1769718653316,3.4287184,116.91,116.87,4.05691721]
[1769718654311,11.1404184,116.91,116.87,1.24558771]
[1769718660321,13.90878004,116.9,116.86,341.42]
[1769718660527,3.38495054,116.89,116.86,341.42]
[1769718660728,6.19628004,116.89,116.86,323.75466893]
[1769718660918,6.19628004,116.88,116.83,1.24355073]
[1769718661521,11.09875054,116.88,116.83,1.24355073]
[1769718661723,3.38495054,116.91,116.86,4.05488023]
[1769718662324,3.38495054,116.91,116.87,2.8113295]
[1769718662528,3.38495054,116.93,116.88,2.8113295]
[1769718663328,3.38495054,116.92,116.88,2.8113295]
[1769718665323,3.38495054,116.94,116.89,2.8113295]
[1769718665528,3.38495054,116.96,116.92,2.8113295]
[1769718665922,2.8113295,116.98,116.94,2.8113295]
[1769718665923,3.38495054,116.98,116.94,2.8113295]
[1769718666229,3.38495054,117.0,116.95,2.8113295]
[1769718666622,3.38495054,117.0,116.94,2.8113295]
[1769718667117,3.38495054,117.0,116.95,2.8113295]
[1769718668425,3.38495054,116.99,116.95,2.8113295]
[1769718670926,11.09135054,116.99,116.94,2.8113295]
[1769718672332,3.38495054,116.98,116.94,2.8113295]
[1769718675631,3.38495054,116.98,116.94,2.81059255]
[1769718681536,3.38495054,116.95,116.89,1.24355073]
[1769718681747,3.38495054,116.95,116.91,2.81059255]
[1769718683842,11.09395054,116.95,116.9,1.24355073]
[1769718684039,11.09395054,116.95,116.9,4.05414328]
[1769718685539,3.35793605,116.94,116.9,2.81059255]
[1769718685945,3.35793605,116.94,116.89,10.52349255]
[1769718686248,3.35793605,116.94,116.89,11.76939331]
[1769718686447,11.06783605,116.94,116.89,4.05649331]
[1769718688248,11.06833605,116.93,116.87,342.68590076]
[1769718688445,3.35793605,116.92,116.87,345.49649331]
[1769718688946,3.35793605,116.92,116.88,2.81059255]
[1769718689354,7.7104,116.93,116.88,2.81059255]
[1769718689650,11.06833605,116.93,116.88,2.81059255]
[1769718691355,3.35793605,116.91,116.87,341.44]
[1769718692357,11.06963605,116.91,116.87,341.44]
[1769718692744,3.35793605,116.9,116.85,4.05649331]
[1769718693551,3.51595306,116.89,116.84,7.7157]
[1769718693749,3.51595306,116.88,116.83,342.72326664]
[1769718694651,11.22965306,116.88,116.83,342.72326664]
[1769718695146,3.51595306,116.88,116.83,345.53385919]
[1769718695354,3.51595306,116.88,116.83,353.25075919]
[1769718698660,7.713,116.89,116.84,2.81059255]
[1769718698961,3.51595306,116.89,116.84,2.81059255]
[1769718700168,6.32654561,116.89,116.83,350.44016664]
[1769718700466,6.32654561,116.89,116.83,353.25075919]
[1769718700651,3.51595306,116.89,116.84,2.81059255]
[1769718701759,119.9543,116.92,116.85,4.05385919]
[1769718701760,11.22755306,116.92,116.85,4.05385919]
[1769718701965,3.51595306,116.92,116.88,2.81059255]
[1769718703168,3.51595306,116.9,116.85,8.95876664]
[1769718703365,6.32654561,116.9,116.85,8.95876664]
[1769718704467,6.32654561,116.9,116.85,1.24326664]
[1769718704767,6.32654561,116.89,116.83,345.53385919]
[1769718706161,14.03964561,116.89,116.83,345.53385919]
[1769718706366,11.22905306,116.89,116.84,2.81059255]
[1769718707770,7.7124,116.9,116.85,2.81059255]
[1769718708468,11.22835306,116.9,116.85,2.81059255]
[1769718711570,7.713,116.89,116.84,353.41005919]
[1769718711769,11.22895306,116.89,116.84,342.88326664]
[1769718712270,11.22895306,116.89,116.84,345.69385919]
[1769718713772,2.81059255,116.89,116.84,341.64]
[1769718714076,3.51595306,116.87,116.82,2.81059255]
[1769718715271,11.23035306,116.87,116.82,2.81059255]
[1769718718181,3.42704755,116.86,116.82,2.81059255]
[1769718718476,3.42704755,116.88,116.83,1.24732283]
[1769718718677,3.42704755,116.88,116.83,2.81059255]
[1769718719379,11.14174755,116.87,116.83,2.81059255]
[1769718720879,11.14174755,116.87,116.82,2.81059255]
[1769718721476,11.14174755,116.87,116.83,2.81059255]
[1769718722179,11.14174755,116.87,116.82,2.81059255]
[1769718722979,11.13944755,116.9,116.86,2.81059255]
[1769718723178,11.13944755,116.9,116.87,2.81059255]
[1769718723374,11.13944755,116.9,116.86,2.81059255]
[1769718724572,11.13944755,116.9,116.87,2.81059255]
[1769718724777,3.42704755,116.92,116.89,2.81059255]
[1769718724976,3.42704755,116.92,116.9,2.81059255]
[1769718725686,7.7096,116.95,116.91,2.81059255]
[1769718725878,7.7096,116.95,116.92,2.81059255]
[1769718727284,7.7083,116.97,116.92,2.81059255]
[1769718727683,3.42704755,116.95,116.92,2.81059255]
[1769718728982,3.42704755,116.94,116.88,7.7131]
[1769718729191,3.42704755,116.94,116.89,2.81059255]
[1769718729589,3.42704755,116.94,116.9,2.81059255]
[1769718730490,3.42704755,116.93,116.9,2.81059255]
[1769718730691,3.42704755,116.93,116.88,7.7131]
[1769718730692,3.42704755,116.93,116.89,2.81059255]
[1769718733591,3.42704755,116.93,116.9,2.81059255]
[1769718736293,11.13744755,116.93,116.87,327.42705365]
[1769718736491,11.13744755,116.93,116.9,2.81059255]
[1769718736688,3.42704755,116.92,116.87,324.08]
[1769718736890,122.72149255,116.96,116.9,2.81059255]
[1769718737091,6.34523176,116.95,116.9,2.81059255]
[1769718737398,122.72149255,116.96,116.9,2.81059255]
[1769718737596,122.7234061,116.96,116.9,2.8125061]
[1769718738298,7.7103,116.94,116.9,2.8125061]
[1769718738498,122.7234061,116.96,116.9,2.8125061]
[1769718738995,3.42704755,116.95,116.9,2.8125061]
[1769718739494,3.42704755,116.95,116.87,335.14125365]
[1769718739794,3.42704755,116.95,116.89,2.8125061]
[1769718739998,11.13814755,116.92,116.88,2.8125061]
[1769718740295,119.9109,116.96,116.87,3.34705365]
[1769718740499,3.42704755,116.93,116.88,3.34705365]
[1769718740706,3.42704755,116.93,116.88,6.15955975]
[1769718740896,3.42704755,116.92,116.87,2.8125061]
[1769718741295,3.42704755,116.92,116.88,2.8125061]
[1769718742303,11.13804755,116.92,116.88,2.8125061]
[1769718742898,11.13804755,116.92,116.87,2.8125061]
[1769718750104,7.7118,116.91,116.87,2.8125061]
[1769718751497,7.7123,116.9,116.87,2.8125061]
[1769718756604,119.9317,116.94,116.88,3.52049386]
[1769718756804,119.9317,116.94,116.89,2.8125061]
[1769718756805,3.39923996,116.94,116.89,2.8125061]
[1769718757005,3.39923996,116.92,116.86,0.38689493]
[1769718757307,3.39923996,116.92,116.87,2.8125061]
[1769718758303,7.7123,116.9,116.87,2.8125061]
[1769718758511,3.39923996,116.89,116.85,341.58]
[1769718758709,3.39923996,116.89,116.83,2.8125061]
[1769718759009,3.39923996,116.89,116.83,3.19940103]
[1769718760305,119.9414,116.93,116.81,343.06924789]
[1769718760306,3.39923996,116.93,116.81,343.06924789]
[1769718760509,3.39923996,116.93,116.87,3.19940103]
[1769718760709,3.39923996,116.92,116.87,3.19940103]
[1769718760906,3.39923996,116.92,116.88,2.8125061]
[1769718763710,7.7097,116.95,116.9,2.8125061]
[1769718763918,7.7097,116.95,116.91,2.8125061]
[1769718764412,7.7097,116.95,116.9,2.8125061]
[1769718765814,11.05474643,116.95,116.9,2.8125061]
[1769718769210,11.05494643,116.94,116.9,2.8125061]
[1769718769415,3.34504643,116.93,116.87,347.93299996]
[1769718769815,11.05564643,116.93,116.88,2.8125061]
[1769718771310,3.34504643,116.91,116.87,341.6]
[1769718771511,3.34504643,116.91,116.85,6.33299996]
[1769718772515,11.05674643,116.91,116.85,6.33299996]
[1769718773417,3.34504643,116.9,116.83,352.79699386]
[1769718773616,6.15755253,116.9,116.83,355.60949996]
[1769718774416,7.713,116.89,116.83,355.60949996]
[1769718775409,7.713,116.89,116.83,347.89299996]
[1769718775615,13.94362073,116.89,116.83,345.08049386]
[1769718777708,13.94362073,116.89,116.83,347.89299996]
[1769718783725,13.94362073,116.89,116.84,3.49952824]
[1769718785822,3.41811463,116.91,116.85,6.31203434]
[1769718786024,119.9482,116.93,116.87,6.31203434]
[1769718786025,6.23062073,116.93,116.87,6.31203434]
[1769718786324,3.41811463,116.92,116.87,6.31203434]
[1769718786726,3.41811463,116.92,116.87,3.49952824]
[1769718787322,11.12941463,116.92,116.87,3.49952824]
[1769718788126,11.12941463,116.92,116.87,6.31203434]
[1769718789422,11.12851463,116.93,116.88,6.31203434]
[1769718792429,3.41811463,116.92,116.87,6.31203434]
[1769718792929,7.7104,116.93,116.89,6.31203434]
[1769718797628,7.7104,116.93,116.89,6.31236042]
[1769718799233,11.12851463,116.93,116.88,2.81283218]
[1769718799831,11.12851463,116.93,116.88,6.31236042]
[1769718800027,11.12851463,116.93,116.89,2.81283218]
[1769718802538,3.41811463,116.95,116.92,2.81283218]
[1769718803328,11.12711463,116.95,116.92,2.81283218]
[1769718803529,11.12711463,116.95,116.91,2.81283218]
[1769718804835,7.709,116.95,116.91,6.31236042]
[1769718805132,3.41811463,116.99,116.94,2.81283218]
[1769718805324,3.41811463,116.99,116.93,2.81283218]
[1769718805530,11.05326252,116.98,116.93,2.81283218]
[1769718806933,3.34566252,116.96,116.91,10.52393218]
[1769718807236,3.34566252,116.96,116.92,2.81283218]
[1769718817238,3.34566252,116.96,116.91,14.11443485]
[1769718818747,3.34566252,116.96,116.91,11.30160267]
[1769718818943,6.1584947,116.96,116.91,11.30160267]
[1769718819547,2.81283218,116.93,116.89,3.39287647]
[1769718824043,6.34716616,116.93,116.87,10.52663218]
[1769718824246,6.34716616,116.92,116.87,3.39287647]
[1769718824545,6.34716616,116.91,116.87,3.39287647]
[1769718824850,119.921,116.95,116.87,3.39287647]
[1769718824851,2.81283218,116.92,116.87,3.39287647]
[1769718828149,6.34716616,116.92,116.87,3.39287647]
[1769718828554,2.81283218,116.91,116.87,3.39287647]
[1769718829646,14.05846616,116.92,116.87,3.39287647]
[1769718829949,6.34716616,116.92,116.87,3.39287647]
[1769718830554,6.34716616,116.9,116.86,328.42]
[1769718831153,2.81283218,116.87,116.83,3.39287647]
[1769718833459,11.24873398,116.88,116.83,3.39287647]
[1769718833460,3.53433398,116.88,116.83,3.39287647]
[1769718833662,6.34716616,116.88,116.83,3.39287647]
[1769718839864,3.57577892,116.91,116.86,3.56557539]
[1769718840155,3.57577892,116.91,116.86,6.37840757]
[1769718840561,3.57577892,116.91,116.86,3.56557539]
[1769718840956,3.57577892,116.91,116.86,6.37840757]
[1769718842162,3.57577892,116.91,116.86,14.09410757]
[1769718843359,6.3886111,116.93,116.87,11.28047539]
[1769718844955,6.3886111,116.93,116.87,3.56557539]
[1769718845160,3.57577892,116.93,116.88,7.7143]
[1769718845364,2.81283218,116.93,116.88,3.56557539]
[1769718845563,6.3886111,116.93,116.88,3.56557539]
[1769718845765,6.3886111,116.93,116.89,7.7137]
[1769718846361,6.3886111,116.95,116.9,7.7128]
[1769718848566,6.3886111,116.95,116.88,3.56557539]
[1769718848567,3.57577892,116.93,116.88,3.56557539]
[1769718848968,3.57577892,116.93,116.88,6.37840757]
[1769718849166,3.57577892,116.93,116.88,3.56557539]
[1769718849362,2.81283218,116.94,116.89,11.27807539]
[1769718849561,6.3886111,116.94,116.89,11.27807539]
[1769718849962,3.57577892,116.94,116.89,11.27807539]
[1769718850360,14.0971111,116.96,116.9,14.09070757]
[1769718850559,3.57577892,116.95,116.9,14.09070757]
[1769718850764,3.57577892,116.95,116.9,11.27787539]
[1769718851365,6.3886111,116.95,116.9,7.7123]
[1769718857580,14.0978111,116.95,116.9,7.7123]
[1769718859080,14.0978111,116.95,116.9,11.27787539]
[1769718859479,11.28497892,116.95,116.9,11.27787539]
[1769718859680,14.0973286,116.95,116.9,11.27787539]
[1769718860569,14.0973286,116.95,116.9,3.56557539]
[1769718865684,3.56235348,116.94,116.9,3.56557539]
[1769718879990,7.7092,116.95,116.9,3.56557539]
[1769718880285,3.38459911,116.94,116.9,3.56557539]
[1769718888206,3.38459911,116.94,116.88,11.16998832]
[1769718888402,3.38459911,116.89,116.84,3.45638832]
[1769718888606,6.19694879,116.89,116.84,3.45638832]
[1769718889301,13.90994879,116.89,116.84,3.45638832]
[1769718892705,7.7144,116.87,116.82,3.45638832]
[1769718892912,6.19694879,116.86,116.8,13.987538]
[1769718896208,6.19694879,116.86,116.81,3.32312555]
[1769718896507,7.31910937,116.87,116.83,3.32312555]
[1769718897404,10.13145905,116.87,116.83,3.32312555]
[1769718898006,7.31910937,116.87,116.83,3.32312555]
[1769718898204,7.7134,116.89,116.83,3.32312555]
[1769718898410,13.99920861,116.89,116.84,3.32312555]
[1769718900210,11.18685893,116.89,116.84,3.32312555]
[1769718900415,13.99920861,116.89,116.84,3.32312555]
[1769718902413,13.99950861,116.88,116.83,3.32312555]
[1769718903914,3.47345893,116.87,116.83,3.32312555]
[1769718905011,3.47345893,116.86,116.81,3.32312555]
[1769718905216,3.47345893,116.84,116.79,8.56135709]
[1769718906014,6.28580861,116.84,116.79,8.56135709]
[1769718906408,7.7163,116.85,116.8,3.32312555]
[1769718906608,11.18975893,116.85,116.8,3.32312555]
[1769718907113,2.02260003,116.79,116.72,3.32312555]
[1769718907308,2.02260003,116.84,116.77,2.81234968]
[1769718907612,126.34020861,116.82,116.76,2.81234968]
[1769718907809,123.54645893,116.8,116.69,26.25489038]
[1769718908016,126.35880861,116.8,116.73,2.81234968]
[1769718908213,2.81234968,116.79,116.72,2.81234968]
[1769718908414,11.19285893,116.8,116.74,2.81234968]
[1769718908614,3.47345893,116.8,116.74,2.81234968]
[1769718908916,7.7188,116.81,116.76,2.81234968]
[1769718909118,7.7188,116.81,116.77,2.81234968]
[1769718909615,7.7188,116.81,116.76,2.81234968]
[1769718910818,7.7188,116.81,116.75,3.32312555]
[1769718911014,7.7188,116.81,116.76,2.81234968]
[1769718911219,3.47345893,116.84,116.78,3.32312555]
[1769718911416,3.47345893,116.86,116.81,2.81234968]
[1769718911622,3.47345893,116.86,116.79,3.32312555]
[1769718911816,3.47345893,116.86,116.83,4.968e-05]
[1769718912016,3.47345893,116.86,116.82,2.81234968]
[1769718912616,3.47345893,116.86,116.82,4.968e-05]
[1769718913516,11.18925893,116.85,116.8,2.81234968]
[1769718913718,11.18925893,116.85,116.79,6.13547523]
[1769718914119,11.18925893,116.85,116.8,2.81234968]
[1769718914522,11.18925893,116.85,116.79,3.32312555]
[1769718914723,11.18925893,116.85,116.8,2.81234968]
[1769718917725,11.18925893,116.85,116.79,6.13547523]
[1769718917726,14.00160861,116.85,116.79,6.13547523]
[1769718918313,11.18925893,116.85,116.79,6.13547523]
[1769718919129,14.00160861,116.85,116.79,6.13547523]
[1769718921517,14.00639889,116.85,116.79,6.14026551]
[1769718922326,3.47345893,116.84,116.79,6.14026551]
[1769718923421,3.47345893,116.84,116.79,3.32312555]
[1769718926330,3.47345893,116.84,116.79,6.14026551]
[1769718929234,3.47345893,116.84,116.79,3.32312555]
[1769718929428,3.47345893,116.84,116.79,6.14026551]
[1769718929630,10.53193996,116.87,116.81,6.35581029]
[1769718929829,11.18980833,116.87,116.81,6.35581029]
[1769718930224,7.7136,116.88,116.82,6.35581029]
[1769718930424,3.47500833,116.89,116.83,6.35581029]
[1769718930931,3.47500833,116.88,116.83,6.35581029]
[1769718931537,6.29214829,116.88,116.83,3.53867033]
[1769718932333,6.29214829,116.87,116.82,3.53867033]
[1769718932827,6.29214829,116.86,116.8,3.53867033]
[1769718933033,2.81713996,116.83,116.78,3.53867033]
[1769718935236,2.81713996,116.82,116.78,3.53867033]
[1769718935940,2.81713996,116.8,116.76,345.11382115]
[1769718936141,2.81713996,116.8,116.76,341.78]
[1769718936736,2.81713996,116.79,116.76,341.78]
[1769718937342,2.81713996,116.81,116.76,341.78]
[1769718937544,6.14460188,116.81,116.76,341.78]
[1769718938635,2.81713996,116.8,116.76,341.78]
[1769718939239,7.7176,116.82,116.77,3.33382115]
[1769718939240,2.81713996,116.82,116.77,3.33382115]
[1769718940533,13.86150188,116.83,116.77,3.33382115]
[1769718941441,13.86150188,116.83,116.78,3.33382115]
[1769718941647,11.04436192,116.83,116.78,3.33382115]
[1769718943652,13.86150188,116.83,116.78,3.33382115]
[1769718946051,13.86080188,116.85,116.78,3.33382115]
[1769718946348,6.14460188,116.84,116.78,3.33382115]
[1769718947451,13.86090188,116.84,116.78,3.33382115]
[1769718947846,11.04376192,116.84,116.78,6.15096111]
[1769718951839,3.32746192,116.83,116.78,6.15096111]
[1769718954052,3.32746192,116.82,116.76,355.65246111]
[1769718954652,11.04526192,116.82,116.76,347.93096111]
[1769718955042,3.32746192,116.78,116.73,283.2900816]
[1769718955443,6.05933359,116.77,116.71,341.84]
[1769718956252,6.05933359,116.77,116.71,345.13499161]
[1769718956550,10.96329363,116.77,116.71,347.95213157]
[1769718956755,13.78043359,116.77,116.71,347.95213157]
[1769718957357,10.96329363,116.77,116.71,347.95213157]
[1769718958448,13.78043359,116.77,116.71,345.13499161]
[1769718959347,13.78043359,116.77,116.71,347.95213157]
[1769718959749,10.96329363,116.77,116.71,347.95213157]
[1769718961353,3.24219363,116.79,116.74,6.11213157]
[1769718962343,7.7195,116.8,116.74,6.11213157]
[1769718962548,7.7195,116.8,116.75,2.81713996]
[1769718963151,7.7195,116.8,116.76,2.81713996]
[1769718965562,10.96169363,116.8,116.74,11.01769161]
[1769718965761,10.96169363,116.8,116.75,2.81713996]
[1769718966151,7.7196,116.79,116.74,3.29499161]
[1769718966357,10.96179363,116.79,116.74,6.11213157]
[1769718966558,10.96179363,116.79,116.74,3.29499161]
[1769718966860,10.96179363,116.79,116.74,6.11213157]
[1769718967158,3.24219363,116.81,116.75,2.81713996]
[1769718967861,3.24219363,116.81,116.76,2.81713996]
[1769718968058,3.24219363,116.83,116.77,3.29499161]
[1769718968366,3.24219363,116.83,116.78,2.81713996]
[1769718968764,10.95959363,116.83,116.78,2.81713996]
[1769718969060,3.24219363,116.83,116.77,3.29499161]
[1769718969263,10.96109363,116.8,116.75,2.81713996]
[1769718969459,3.24219363,116.8,116.75,2.81713996]
[1769718969763,3.24219363,116.8,116.76,2.81713996]
[1769718970063,3.24219363,116.8,116.75,2.81713996]
[1769718970364,10.96049363,116.81,116.75,7.7222]
[1769718970564,10.96049363,116.81,116.76,2.81713996]
[1769718972361,10.96049363,116.81,116.75,6.11213157]
[1769718972767,13.77763359,116.81,116.75,6.11213157]
[1769718973065,13.77763359,116.81,116.75,3.29499161]
[1769718973266,13.77763359,116.81,116.75,13.83433157]
[1769718973459,10.96049363,116.81,116.75,13.83433157]
[1769718973660,10.96049363,116.81,116.76,2.81713996]
[1769718973969,10.96049363,116.81,116.75,13.83433157]
[1769718975660,2.81713996,116.79,116.75,3.29499161]
[1769718975867,3.24219363,116.8,116.75,6.11213157]
[1769718976163,3.24219363,116.8,116.77,2.81713996]
[1769718976765,3.24219363,116.8,116.75,6.11213157]
[1769718976969,3.24219363,116.8,116.76,2.81713996]
[1769718977468,3.24219363,116.8,116.77,2.81713996]
[1769718977770,3.24219363,116.8,116.75,3.29499161]
[1769718977771,3.24219363,116.87,116.8,3.29499161]
[1769718977973,3.24219363,116.87,116.81,2.81713996]
[1769718978273,3.24219363,116.86,116.8,6.11213157]
[1769718978460,3.24219363,116.86,116.8,2.81713996]
[1769718979167,3.24219363,116.85,116.76,341.92]
[1769718979372,3.24219363,116.83,116.76,345.21499161]
[1769718979672,3.24219363,116.83,116.77,2.81713996]
[1769718980567,10.95949363,116.83,116.77,2.81713996]
[1769718981472,10.95949363,116.83,116.78,2.81713996]
[1769718983675,10.95949363,116.83,116.78,2.81823045]
[1769718984767,10.95949363,116.83,116.79,2.81823045]
[1769718985764,10.95949363,116.83,116.78,2.81823045]
[1769718986973,10.95949363,116.83,116.76,352.93599161]
[1769718987177,10.95949363,116.83,116.78,2.81823045]
[1769718987577,10.95949363,116.83,116.76,345.21499161]
[1769718987779,10.95949363,116.83,116.78,2.81823045]
[1769718987981,3.50094237,116.82,116.78,2.81823045]
[1769718989675,2.81823045,116.85,116.78,2.81823045]
[1769718989676,11.21724237,116.84,116.78,6.11633682]
[1769718989882,11.21724237,116.84,116.79,2.81823045]
[1769718990275,3.50094237,116.86,116.81,2.81823045]
[1769718990486,3.50094237,116.86,116.83,2.81823045]
[1769718990777,3.50094237,116.9,116.84,2.81823045]
[1769718991080,3.50094237,116.88,116.84,2.81823045]
[1769718991266,3.50094237,116.88,116.82,10.53573045]
[1769718991680,3.50094237,116.88,116.83,2.81823045]
[1769718992382,11.21474237,116.88,116.83,2.81823045]
[1769718992877,3.50094237,116.88,116.84,10.53443045]
[1769718993081,3.50094237,116.88,116.85,2.81823045]
[1769718993578,3.50094237,116.9,116.87,2.81823045]
[1769718994579,179.28158177,116.92,116.88,2.81823045]
[1769718994982,182.68521729,116.92,116.88,2.81823045]
[1769718995376,182.68521729,116.92,116.88,0.30995508]
[1769718995577,182.68521729,116.92,116.87,2.81823045]
[1769718995776,3.40363552,116.9,116.86,2.81823045]
[1769718995978,3.40363552,116.9,116.84,10.53393045]
[1769718996482,3.40363552,116.89,116.84,2.81823045]
[1769718996780,3.40363552,116.89,116.83,10.53503045]
[1769718997381,11.11663552,116.89,116.84,2.81823045]
[1769718999281,11.11743552,116.88,116.84,2.81823045]
[1769718999776,11.11743552,116.88,116.83,2.81823045]
[1769719000783,7.7144,116.87,116.82,6.36783267]
[1769719001882,7.7144,116.87,116.83,2.81823045]
[1769719002383,7.715,116.86,116.82,6.36783267]
[1769719003482,11.11933552,116.85,116.8,2.81823045]
[1769719006978,7.7157,116.85,116.79,6.36783267]
[1769719007175,7.7157,116.85,116.78,7.7203]
[1769719007176,11.12013552,116.84,116.78,2.81823045]
[1769719007581,11.12013552,116.84,116.78,6.36783267]
[1769719007772,3.40363552,116.82,116.76,159.82960222]
[1769719007976,3.40363552,116.82,116.76,162.64783267]
[1769719008183,6.22186597,116.82,116.76,3.54960222]
[1769719008584,3.40363552,116.82,116.77,2.81823045]
[1769719009483,3.40363552,116.82,116.76,11.27120222]
[1769719009686,3.40363552,116.82,116.77,2.81823045]
[1769719010884,11.12003552,116.84,116.78,6.36783267]
[1769719012683,3.40363552,116.83,116.78,3.54960222]
[1769719012883,13.93906597,116.83,116.78,3.54960222]
[1769719013282,11.12083552,116.83,116.78,3.54960222]
[1769719013791,3.40363552,116.83,116.78,6.36783267]
[1769719014888,3.40363552,116.83,116.78,3.54960222]
[1769719015291,3.40363552,116.85,116.8,2.81823045]
[1769719017692,3.40363552,116.85,116.8,10.53703045]
[1769719019795,3.40363552,116.85,116.8,14.03539953]
[1769719020294,3.40363552,116.85,116.8,11.21716908]
[1769719020483,3.40363552,116.85,116.8,14.03539953]
[1769719021788,7.7156,116.86,116.8,14.03539953]
[1769719021996,7.7156,116.86,116.81,3.49836908]
[1769719022293,7.7156,116.86,116.81,6.31659953]
[1769719023489,11.15365092,116.86,116.81,6.31659953]
[1769719023690,11.15365092,116.86,116.81,3.49836908]
[1769719027898,11.15365092,116.86,116.81,6.31659953]
[1769719028599,2.81823045,116.83,116.77,6.31659953]
[1769719028795,2.52194851,116.84,116.77,3.49836908]
[1769719028796,5.34017896,116.84,116.77,3.49836908]
[1769719028994,2.52194851,116.83,116.77,3.49836908]
[1769719029196,5.34017896,116.82,116.77,7.7204]
[1769719029400,5.34017896,116.82,116.75,3.49836908]